Cogmind - Beta 15 @@@ ROGUE MODE // 2025.05.18 @ 13:00:11 Player: Nalesnig Result: Destroyed by Y-64 Sentinel with Wave Gun Performance ------------- Evolutions (5) 2500 Regions Visited (10) 2000 Robots Destroyed (100) 500 Value Destroyed (3904) 3904 Prototype IDs (33) 660 Alien Tech Used (0) 0 Bonus (1458) 1458 TOTAL SCORE: 11022 Bonus ------- High Alert Combat Kills 1158 Aligned with FarCom 300 Cogmind --------- Core Integrity 0/1000 Matter 195/300 Energy 76/100 System Corruption 18% Temperature Cool (9) Movement Flying (40) Location -5/Factory Parts ------- > --- POWER (2) -------- (None) > --- PROPULSION (4) --- Nuclear Pulse Array > --- UTILITY (7) ------ Enhanced Optical Array Advanced Salvage Targeting Computer Improved Propulsion Shielding Experimental Weapon Shielding > --- WEAPON (4) ------- Plasma Sword Lance > --- INVENTORY (5) ---- Advanced Heat Sink Matter Compressor (250) Advanced Shield Generator Trap Reconfigurator Improved Plasma Cutter Peak State ------------ > --- POWER ------------ Light Angular Momentum Engine Micro Fission Core > --- PROPULSION ------- Medium Treads Medium Treads Antigrav System Antigrav System > --- UTILITY ---------- Advanced Cooling System Large Storage Unit Advanced Targeting Computer Advanced Recoil Stabilizer Improved Core Shielding Improved Core Shielding Improved Dynamic Insulation System > --- WEAPON ----------- Hypervelocity Coil Gun Hypervelocity Coil Gun Hypervelocity Coil Gun Mass Driver > --- INVENTORY -------- Large Storage Unit Matter Compressor Improved Trap Scanner Advanced Shield Generator Long-range Tractor Beam Trap Reconfigurator Lightning Gun Tesla Rifle Disruptor Cannon Improved Plasma Cutter Heavy Mace [Rating: 92] Favorites ----------- Power Micro Fission Core Engine Light Deuterium Engine Power Core Micro Fission Core Reactor Antimatter Reactor Propulsion Improved Medium Treads Treads Improved Medium Treads Wheel Armored Huge Wheel Hover Unit Improved Hover Unit Flight Unit Nuclear Pulse Array Utility Advanced Targeting Computer Device Improved Trap Scanner Storage Small Storage Unit Processor Advanced Targeting Computer Hackware Advanced Hacking Suite Protection Improved Light Armor Plating Weapon Heavy Mace Energy Gun Heavy EM Shotgun Energy Cannon Compact Ion Cannon Ballistic Gun Coil Gun Ballistic Cannon Gauss Cannon Launcher Improved Concussive RPG Impact Weapon Heavy Mace Slashing Weapon Plasma Sword Piercing Weapon Lance Special Melee Weapon Datajack Build | -11 -10 -10 -10 -9 -8 -7 -7 -7 -6 -5 ------- Run | Yrd Mat Min Exi Min Mat Fac Was Fac Fac Fac Slots Evolved 10 | . . . . . 4 2 . . 2 2 Power 1 | . . . . . . . . . . 1 Propulsion 2 | . . . . . 2 . . . . . Utility 5 | . . . . . 1 2 . . 1 1 Weapon 2 | . . . . . 1 . . . 1 . Parts Attached 107 | 7 4 . 1 6 17 2 3 11 7 49 Power 15 | 1 1 . . . 1 . . 1 . 11 Engine 4 | 1 1 . . . 1 . . . . 1 Core 8 | . . . . . . . . 1 . 7 Reactor 3 | . . . . . . . . . . 3 Propulsion 26 | 2 . . . 1 6 . . 3 3 11 Treads 14 | 2 . . . 1 3 . . . 3 5 Leg . | . . . . . . . . . . . Wheel 3 | . . . . . . . . 3 . . Hover 6 | . . . . . 2 . . . . 4 Flight 3 | . . . . . 1 . . . . 2 Utility 37 | 2 2 . 1 3 4 2 . 5 1 17 Device 11 | 1 . . . 1 1 1 . 1 1 5 Storage 8 | 1 1 . 1 . 1 . . 2 . 2 Processor 6 | . . . . 1 . 1 . 2 . 2 Hackware 1 | . . . . . . . . . . 1 Protection 11 | . 1 . . 1 2 . . . . 7 Artifact . | . . . . . . . . . . . Weapon 29 | 2 1 . . 2 6 . 3 2 3 10 Energy Gun 8 | 1 . . . 1 3 . 1 . . 2 Energy Cannon 3 | . . . . . . . . 1 1 1 Ballistic Gun 9 | 1 . . . . 2 . . 1 1 4 Ballistic Cannon 3 | . . . . 1 . . . . 1 1 Launcher 2 | . . . . . . . 2 . . . Special Weapon . | . . . . . . . . . . . Impact Weapon 1 | . . . . . 1 . . . . . Slashing Weapon 1 | . . . . . . . . . . 1 Piercing Weapon 1 | . . . . . . . . . . 1 Special Melee Weapon 1 | . 1 . . . . . . . . . Unidentified Prototypes 6 | . . . . 1 2 . . . 1 2 Corrupted Parts 1 | . . . . . 1 . . . . . System Corruption 2 | . . . . . 2 . . . . . Parts Lost 52 | . 5 . . . 2 . 7 . . 38 Power 10 | . 2 . . . . . . . . 8 Propulsion 13 | . . . . . 1 . 2 . . 10 Utility 13 | . 1 . . . . . 3 . . 9 Weapon 16 | . 2 . . . 1 . 2 . . 11 Highest Loss Streak 12 | . 3 . . . 1 . 7 . . 12 To Critical Strikes 2 | . . . . . . . . . . 2 Average Backups 7 | . 1 1 4 5 7 8 6 4 7 9 Power 1 | . . . 2 3 2 2 2 2 1 . Propulsion . | . . . . . . . . . . . Utility 3 | . . 1 1 2 2 2 2 1 3 5 Weapon 2 | . . . . . 2 4 2 1 2 2 Tool/Special . | . . . . . . . . . . . Unused Backups 21 | . . . . . 7 . 3 . 5 6 Power 7 | . . . . . 4 . . . 3 . Propulsion 1 | . . . . . . . . . 1 . Utility 7 | . . . . . . . 1 . 1 5 Weapon 5 | . . . . . 3 . 2 . . . Tool/Special 1 | . . . . . . . . . . 1 Average Slot Usage (%) 79 | . 70 14 9 54 83 99 37 53 90 84 Engine 2 | . 9 . . . 6 7 2 . . . Core 4 | . . . . . . . . 3 6 6 Treads 11 | . 18 . . 12 13 23 8 . 11 12 Wheel 2 | . . . . . . . . 10 7 1 Hover 2 | . . . . . 9 7 2 . . 1 Device 8 | . 13 14 9 . . 4 2 2 10 13 Storage 5 | . 9 . . . 8 7 2 3 6 4 Processor 9 | . . . . 11 9 15 6 10 13 9 Protection 6 | . . . . 12 9 9 2 3 6 6 Energy Gun 3 | . 3 . . 11 12 7 3 3 . . Energy Cannon 2 | . . . . . . . . 2 6 4 Ballistic Gun 5 | . 9 . . . 6 15 5 5 6 5 Ballistic Cannon 4 | . . . . 5 7 . . . 6 4 Impact Weapon 2 | . . . . . . . . 3 6 3 Peak Build Rating 92 | 7 7 1 2 17 34 43 37 43 65 92 Average Rating 49 | 4 5 1 1 8 23 37 13 27 58 71 On Entrance 18 | . 7 1 1 2 10 30 43 7 43 62 Naked Turns 304 | . 17 . 49 23 . . 47 . . 168 Heaviest Build 75 | 13 17 1 1 9 36 39 38 31 39 75 Greatest Support 114 | 40 40 3 3 23 62 62 62 56 56 114 Greatest Overweight (x) 9 | . 1 . . . 1 . 1 2 1 9 Average Overweight (x) . | . . . . . . . . . . . Largest Inventory Capacity 15 | 8 10 5 10 5 10 10 10 8 8 15 Average Capacity 9 | 7 7 5 5 5 9 10 6 5 8 10 Most Carried 15 | 1 2 1 5 5 10 9 9 7 8 15 Average Carried 7 | . 1 1 4 5 7 8 6 4 7 9 Final Capacity 10 | 8 5 5 5 5 10 10 5 8 8 5 Final Carried 10 | 1 1 1 5 5 10 9 5 7 8 5 Class Distribution -------------------- 49% | Gunner 23% | Mutant 10% | Skirmisher 9% | Scavenger-Skirmisher 6% | Scavenger-Gunner Dominant Class ---------------- Mutant | -10/Materials Mutant | -10/Mines Mutant | -10/Exiles Mutant | -9/Mines Skirmisher | -8/Materials Scavenger-Skirmisher | -7/Factory Mutant | -7/Waste Mutant | -7/Factory Gunner | -6/Factory Gunner | -5/Factory Resources | -11 -10 -10 -10 -9 -8 -7 -7 -7 -6 -5 ----------- Run | Yrd Mat Min Exi Min Mat Fac Was Fac Fac Fac Matter Collected 3589 | 238 . . . 52 553 . . 322 218 2206 Remotely . | . . . . . . . . . . . Salvage Created 4932 | 19 . . . . 671 . . 319 263 3660 Parts 220 | 3 . . . . 34 . . 5 3 175 Haulers Intercepted 8 | . . . . . 5 . . . . 3 Recyclers Shooed 9 | . . . . . . . . 2 1 6 Parts Field Recycled . | . . . . . . . . . . . Retrieved Matter . | . . . . . . . . . . . Parts Self-Destructed . | . . . . . . . . . . . Prevented . | . . . . . . . . . . . Kills | -11 -10 -10 -10 -9 -8 -7 -7 -7 -6 -5 ------- Run | Yrd Mat Min Exi Min Mat Fac Was Fac Fac Fac Combat Hostiles Destroyed 59 | . . . . . 8 . . . 1 50 Melee 7 | . . . . . . . . . 1 6 Guns 22 | . . . . . 3 . . . . 19 Cannons 24 | . . . . . 5 . . . . 19 AOE 5 | . . . . . . . . . . 5 Classes Destroyed 15 | 1 1 . . . 5 . . 1 3 4 Worker 8 | . . . . . . . . . 2 6 Builder 5 | . . . . . 2 . . . . 3 Tunneler 3 | 1 . . . . . . . . . 2 Hauler 8 | . . . . . 5 . . . . 3 Recycler 10 | . . . . . . . . 4 1 5 Operator 1 | . . . . . . . . . 1 . Watcher 6 | . 1 . . . 2 . . . . 3 Swarmer 10 | . . . . . 2 . . . . 8 Grunt 18 | . . . . . 3 . . . . 15 Brawler 2 | . . . . . . . . . . 2 Duelist 4 | . . . . . . . . . . 4 Protector 1 | . . . . . . . . . . 1 Sentry 3 | . . . . . 3 . . . . . Hunter 5 | . . . . . . . . . . 5 Programmer 16 | . . . . . . . . . 1 15 Best Kill Streak 10 | 1 1 . . . 3 . . 2 1 10 Combat Bots Only 6 | . . . . . 2 . . . 1 6 Max Kills in Single Turn 5 | 1 1 . . . 2 . . 1 1 5 Gunslinging . | . . . . . . . . . . . Exploded 2 | . . . . . . . . . . 2 Melee 1 | . . . . . . . . . 1 1 Uniques/NPCs Destroyed . | . . . . . . . . . . . Combat | -11 -10 -10 -10 -9 -8 -7 -7 -7 -6 -5 -------- Run | Yrd Mat Min Exi Min Mat Fac Was Fac Fac Fac Hostile Shots Fired 540 | . 58 . . . 34 . 8 . . 440 Missed 150 | . 18 . . . 7 . . . . 125 Hits 390 | . 40 . . . 27 . 8 . . 315 Melee 20 | . . . . . . . 8 . . 12 Projectile 370 | . 40 . . . 27 . . . . 303 AOE 2 | . . . . . . . . . . 2 Critical Strikes 21 | . . . . . . . 2 . . 19 Damage Taken 7623 | . 470 . . . 448 . 383 27 200 6095 Core 1501 | . 200 . . . 54 . 236 . . 1011 Absorbed by Shields . | . . . . . . . . . . . Redirected to Shielding 124 | . . . . . . . . . . 124 Core Remaining (%) 75 | 100 . . . 20 90 . . 66 100 . Volleys Fired 149 | 2 2 . . . 48 . 2 2 . 93 Largest 4 | 2 2 . . . 3 . 1 1 . 4 Hottest 203 | 60 60 . . . 125 . 39 80 . 203 Shots Fired 411 | 4 3 . . . 91 . 2 5 . 306 Gun 205 | 4 3 . . . 47 . . . . 151 Cannon 204 | . . . . . 44 . . 5 . 155 Launcher 2 | . . . . . . . 2 . . . Special . | . . . . . . . . . . . Kinetic 300 | 2 2 . . . 57 . . . . 239 Thermal 33 | . . . . . . . . 5 . 28 Explosive 1 | . . . . . . . 1 . . . Electromagnetic 77 | 2 1 . . . 34 . 1 . . 39 Robot Hit Streak 13 | 2 3 . . . 9 . 1 1 . 13 Robot Miss Streak 8 | 1 1 . . . 8 . 1 2 . 5 Penetration Max 2 | . . . . . . . . . . 2 Secondary Targets . | . . . . . . . . . . . Shots Hit Robots 292 | 2 4 . . . 57 . 1 5 9 214 Core Hits 159 | 1 1 . . . 23 . 1 1 1 131 Critical Kills 17 | . . . . . . . . . 1 16 Critical Parts Destroyed 28 | . . . . . 1 . . . . 27 Critical Strikes 54 | . . . . . 3 . . . 1 50 Destroy 32 | . . . . . 1 . . . . 31 Blast 6 | . . . . . 1 . . . . 5 Corrupt 2 | . . . . . 1 . . . . 1 Smash 13 | . . . . . . . . . 1 12 Sever 1 | . . . . . . . . . . 1 Melee Attacks 125 | . 5 . . . 1 . . 12 24 83 Impact 112 | . . . . . 1 . . 12 24 75 Slashing 8 | . . . . . . . . . . 8 Piercing . | . . . . . . . . . . . Sneak Attacks 20 | . 3 . . . . . . 4 6 7 Combat Hostiles . | . . . . . . . . . . . Follow-up Attacks . | . . . . . . . . . . . Damage Inflicted 10527 | 43 154 . . . 1089 . 253 476 638 7874 Guns 2044 | 43 22 . . . 559 . . . . 1420 Cannons 2819 | . . . . . 442 . 18 26 . 2333 Explosions 2785 | . 131 . . . 88 . 235 . . 2331 Melee 2862 | . . . . . . . . 450 638 1774 Ramming 17 | . 1 . . . . . . . . 16 Kinetic 3561 | 28 . . . . 592 . . . . 2941 Thermal 1634 | . 131 . . . 88 . . 26 . 1389 Explosive 1601 | . . . . . . . 230 . . 1371 Electromagnetic 834 | 15 22 . . . 409 . 5 . . 383 Impact 2717 | . . . . . . . 18 450 638 1611 Slashing 163 | . . . . . . . . . . 163 Piercing . | . . . . . . . . . . . Highest Corruption 18 | . . . . . 2 . 14 14 . 18 Average Corruption 8 | . . . . . 2 . 7 14 . 10 Corruption Purged . | . . . . . . . . . . . Corruption Blocked . | . . . . . . . . . . . Effects 189 | . . . . . 21 . 6 20 . 142 Message Errors 48 | . . . . . 2 . . 6 . 40 Matter Fused 43 | . . . . . 7 . 2 3 . 31 Heat Flow Errors 25 | . . . . . 1 . 2 4 . 18 Energy Discharges 25 | . . . . . 5 . 1 2 . 17 Parts Rejected 4 | . . . . . 1 . . . . 3 Parts Fused 1 | . . . . . . . . . . 1 Data Loss (minor) 13 | . . . . . 2 . 1 1 . 9 Data Loss (major) 5 | . . . . . 1 . . . . 4 Misfires 8 | . . . . . 1 . . 3 . 4 Alerts 3 | . . . . . . . . 1 . 2 Misdirections 3 | . . . . . . . . . . 3 Weapon Failures 11 | . . . . . 1 . . . . 10 Overload Shots . | . . . . . . . . . . . Overflow Damage 1563 | . 72 . . . 10 . 3 243 268 967 Projectiles 44 | . . . . . . . . . . 44 Explosions 335 | . 72 . . . 10 . 3 . . 250 Melee 1184 | . . . . . . . . 243 268 673 Knockbacks 31 | . . . . . 1 . . 2 5 23 Impact 15 | . . . . . . . . 2 5 8 Kinetic 16 | . . . . . 1 . . . . 15 Secondary . | . . . . . . . . . . . Self-Inflicted Damage 320 | . 132 . . . 103 . 51 28 . 6 Shots 7 | . 2 . . . 2 . 2 1 . . Rammed 6 | . 2 . . . . . 1 . . 3 Targets Rammed 6 | . 2 . . . . . 1 . . 3 Kicked . | . . . . . . . . . . . Crushed . | . . . . . . . . . . . Highest Temperature 266 | . 19 . . . 266 . 248 180 . 260 Average Temperature 55 | . 14 . . . 50 . 113 74 . 54 Received Heat Transfer 1070 | . 30 . . . 99 . . . . 941 Effects 1 | . . . . . . . . . . 1 Energy Bleed 1 | . . . . . . . . . . 1 Siege Activations . | . . . . . . . . . . . Martial Activations . | . . . . . . . . . . . Shielding Activations . | . . . . . . . . . . . Robots Disrupted . | . . . . . . . . . . . Combat Hostiles . | . . . . . . . . . . . Robots Corrupted 12 | . . . . . . . . 2 4 6 Combat Hostiles 1 | . . . . . . . . . . 1 Parts Fried 21 | . . . . . 2 . . 2 7 10 Impact Corruptions 40 | . . . . . . . . 6 12 22 Robots Melted . | . . . . . . . . . . . Combat Hostiles . | . . . . . . . . . . . Parts Melted . | . . . . . . . . . . . Heat Transferred 1224 | . 100 . . . 50 . . 50 . 1024 Parts Sabotaged 2 | . . . . . . . . . . 2 Parts Stolen . | . . . . . . . . . . . Parts Stripped . | . . . . . . . . . . . Power Chain Reactions 4 | . 1 . . . 2 . . . . 1 Alert | -11 -10 -10 -10 -9 -8 -7 -7 -7 -6 -5 ------- Run | Yrd Mat Min Exi Min Mat Fac Was Fac Fac Fac Maximum Alert Level 5 | . . . . . . . . . . 5 Low Security (%) 75 | 100 100 100 . 100 100 100 100 100 100 47 Level 1 2 | . . . . . . . . . . 5 Level 2 7 | . . . . . . . . . . 15 Level 3 2 | . . . . . . . . . . 4 Level 4 5 | . . . . . . . . . . 10 Level 5 7 | . . . . . . . . . . 16 High Security . | . . . . . . . . . . . Max Security . | . . . . . . . . . . . Peak Influence 1902 | 5 58 17 . . 65 . 15 43 30 1902 Initial 17 | . . 17 . . . . . . 16 . Average 294 | . 14 17 . . 13 . 3 3 3 611 Influence Increases 3654 | 5 187 . . . 391 . 25 69 122 2855 Destroy 0b10 Robot/C 1160 | . . . . . 160 . . . 20 980 Destroy 0b10 Robot/NC 210 | 5 5 . . . 45 . . 20 20 115 Destroy Leader 288 | . 2 . . . 64 . . . 10 212 Trap Triggered on 0b10 240 | . . . . . 40 . . . 60 140 Successful Hack 118 | . 34 . . . 27 . . 12 . 45 Disable Machine 660 | . 45 . . . 15 . . 30 . 570 Destroy Structure 423 | . 26 . . . 10 . 10 7 12 358 Partial Spotted 45 | . . . . . . . 15 . . 30 Lose Combat Pursuer 510 | . 75 . . . 30 . . . . 405 Influence Decreases 1763 | 5 142 28 17 . 391 . 25 36 155 964 Entered New Map 62 | . . 28 17 . . . . . 17 . Time Decay 1288 | 5 112 . . . 371 . 25 36 135 604 Lost Part 410 | . 30 . . . 20 . . . . 360 Purge Threat 3 | . . . . . . . . . 3 . Squads Dispatched 37 | . 2 . . . . . . 1 5 29 Investigation 4 | . 2 . . . . . . . 1 1 Extermination 15 | . . . . . . . . 1 3 11 Reinforcement 10 | . . . . . . . . . 1 9 Assault 7 | . . . . . . . . . . 7 Garrison 1 | . . . . . . . . . . 1 Intercept . | . . . . . . . . . . . Searches Triggered . | . . . . . . . . . . . Construction Impeded 1 | . . . . . . . . . . 1 Haulers Reinforced 3 | . . . . . . . . . . 3 Active Scanning Responses . | . . . . . . . . . . . Cargo Convoy Interrupts 1 | . . . . . . . . . . 1 Stealth | -11 -10 -10 -10 -9 -8 -7 -7 -7 -6 -5 --------- Run | Yrd Mat Min Exi Min Mat Fac Was Fac Fac Fac Distress Signals 5 | . 1 . . . 3 . . . . 1 Communications Jammed . | . . . . . . . . . . . Distress Signals . | . . . . . . . . . . . Times Spotted 142 | . 14 . . . 22 . 5 2 4 95 Peak Tracking Total 10 | . 7 . . . 4 . 5 2 1 10 Tactical Retreats 20 | . 2 . . . 2 . . . . 16 Traps | -11 -10 -10 -10 -9 -8 -7 -7 -7 -6 -5 ------- Run | Yrd Mat Min Exi Min Mat Fac Was Fac Fac Fac Traps Triggered 4 | . 1 . . . . 1 . 1 . 1 Indirectly . | . . . . . . . . . . . Trap Hack Attempts . | . . . . . . . . . . . Triggered . | . . . . . . . . . . . Disarmed . | . . . . . . . . . . . Reprogrammed . | . . . . . . . . . . . Reused 24 | . . . . . 4 . . . 6 14 Traps Reconfigurated 43 | . . . . . 11 1 . . 16 15 Traps Extracted . | . . . . . . . . . . . Installed . | . . . . . . . . . . . Triggered 24 | . . . . . 4 . . . 6 14 Machines | -11 -10 -10 -10 -9 -8 -7 -7 -7 -6 -5 ---------- Run | Yrd Mat Min Exi Min Mat Fac Was Fac Fac Fac Machines Disabled 44 | . 3 . . . 1 . . 2 . 38 Max in Single Turn 7 | . 3 . . . 1 . . 2 . 7 Machines Repaired . | . . . . . . . . . . . Machines Dismantled . | . . . . . . . . . . . Machines Sabotaged . | . . . . . . . . . . . Overloaded Fab Kills . | . . . . . . . . . . . Hacking | -11 -10 -10 -10 -9 -8 -7 -7 -7 -6 -5 --------- Run | Yrd Mat Min Exi Min Mat Fac Was Fac Fac Fac Machines Accessed 36 | . 5 . 2 1 10 1 . 1 7 9 Terminals 26 | . 3 . . 1 9 1 . 1 4 7 Fabricators 2 | . . . . . . . . . 1 1 Repair Stations 1 | . . . . . . . . . . 1 Recycling Units 5 | . 2 . . . 1 . . . 2 . Scanalyzers . | . . . . . . . . . . . Garrison Access . | . . . . . . . . . . . Total Hacks 75 | . 15 . 2 1 26 1 . 1 15 14 Successful 37 | . 10 . 2 . 13 . . 1 6 5 Failed 38 | . 5 . . 1 13 1 . . 9 9 Catastrophic 13 | . 1 . . 1 2 1 . . 3 5 Database Lockouts . | . . . . . . . . . . . Manual 25 | . 8 . 1 1 4 . . . 8 3 Terminals 58 | . 10 . . 1 24 1 . 1 10 11 Fabricators 2 | . . . . . . . . . 1 1 Repair Stations 2 | . . . . . . . . . . 2 Recycling Units 11 | . 5 . . . 2 . . . 4 . Scanalyzers . | . . . . . . . . . . . Garrison Access . | . . . . . . . . . . . Terminal Hacks 24 | . 5 . 2 . 11 . . 1 2 3 Record 2 | . . . 1 . . . . 1 . . Prototype ID Bank 2 | . 1 . . . 1 . . . . . Open DSF 2 | . . . . . . . . . . 2 Level Access Points 1 | . . . . . . . . . . 1 Branch Access Points 1 | . . . . . 1 . . . . . Emergency Access Points 2 | . . . . . 2 . . . . . Alert Level 1 | . . . . . . . . . 1 . Unreport Threat 1 | . . . . . . . . . 1 . Locate Traps 4 | . 1 . . . 3 . . . . . Patrol Status 1 | . 1 . . . . . . . . . Transport Status 2 | . 1 . . . 1 . . . . . Hauler Manifests 2 | . 1 . . . 1 . . . . . Zone Layout 2 | . . . . . 2 . . . . . Proto ID Catalog 1 | . . . 1 . . . . . . . Fabricator Hacks 1 | . . . . . . . . . . 1 Network Status 1 | . . . . . . . . . . 1 Repair Station Hacks 1 | . . . . . . . . . . 1 Scan Component 1 | . . . . . . . . . . 1 Recycling Unit Hacks 4 | . 1 . . . 2 . . . 1 . Process 1 | . . . . . 1 . . . . . Report Inventory 2 | . . . . . 1 . . . 1 . Retrieve Components 1 | . 1 . . . . . . . . . Scanalyzer . | . . . . . . . . . . . Garrison Access Hacks . | . . . . . . . . . . . Unauthorized Hacks 7 | . 4 . . . . . . . 3 . Terminals 2 | . 1 . . . . . . . 1 . Assimilate 2 | . 1 . . . . . . . 1 . Fabricators . | . . . . . . . . . . . Repair Stations . | . . . . . . . . . . . Recycling Units 5 | . 3 . . . . . . . 2 . Monitor 2 | . 1 . . . . . . . 1 . Recyclers 1 | . 1 . . . . . . . . . Mask 2 | . 1 . . . . . . . 1 . Scanalyzers . | . . . . . . . . . . . Garrison Access . | . . . . . . . . . . . Data Cores Recovered 1 | . . . . . 1 . . . . . Used . | . . . . . . . . . . . Hacking Detections 28 | . 2 . . 1 10 1 . 1 6 7 Full Trace Events 1 | . 1 . . . . . . . . . Feedback Events . | . . . . . . . . . . . Feedback Blocked . | . . . . . . . . . . . Robot Schematics Acquired . | . . . . . . . . . . . Robots Built . | . . . . . . . . . . . Authchips . | . . . . . . . . . . . Time . | . . . . . . . . . . . Total Robot Build Rating . | . . . . . . . . . . . Part Schematics Acquired . | . . . . . . . . . . . Parts Built . | . . . . . . . . . . . Authchips . | . . . . . . . . . . . Time . | . . . . . . . . . . . Total Part Build Rating . | . . . . . . . . . . . Parts Repaired . | . . . . . . . . . . . Time . | . . . . . . . . . . . Parts Recycled . | . . . . . . . . . . . Recycled Matter 95 | . . . . . 95 . . . . . Retrieved Matter . | . . . . . . . . . . . Retrieved Components . | . . . . . . . . . . . Parts Scanalyzed . | . . . . . . . . . . . Part Schematics Acquired . | . . . . . . . . . . . Parts Damaged . | . . . . . . . . . . . Bothacking | -11 -10 -10 -10 -9 -8 -7 -7 -7 -6 -5 ------------ Run | Yrd Mat Min Exi Min Mat Fac Was Fac Fac Fac Used RIF Installer . | . . . . . . . . . . . Robots Hacked 1 | . 1 . . . . . . . . . Non-combat 1 | . 1 . . . . . . . . . Combat . | . . . . . . . . . . . Robot Hacks Applied 2 | . 2 . . . . . . . . . no_distress 1 | . 1 . . . . . . . . . find_recycling 1 | . 1 . . . . . . . . . Relay Couplers Released . | . . . . . . . . . . . Fabnet Peak Effective % . | . . . . . . . . . . . Robots Rewired . | . . . . . . . . . . . Allies Hacked 1 | . . . . . . . . . 1 . Hacks Repelled . | . . . . . . . . . . . Allies | -11 -10 -10 -10 -9 -8 -7 -7 -7 -6 -5 -------- Run | Yrd Mat Min Exi Min Mat Fac Was Fac Fac Fac Total Allies 2 | . . . . . . . 1 . 1 . Largest Group 1 | . . . . . . . 1 . 1 . Highest-Rated Group 31 | . . . . . . . 31 . 10 . Highest-Rated Ally 31 | . . . . . . . 31 . 10 . Total Orders . | . . . . . . . . . . . Ally Attacks 13 | . . . . . . . 13 . . . Total Damage 168 | . . . . . . . 168 . . . Kills . | . . . . . . . . . . . Allies Corrupted . | . . . . . . . . . . . Allies Melted . | . . . . . . . . . . . Intel | -11 -10 -10 -10 -9 -8 -7 -7 -7 -6 -5 ------- Run | Yrd Mat Min Exi Min Mat Fac Was Fac Fac Fac Active Infowar (turns) 6987 | 26 313 8 102 243 2083 101 57 . 935 3119 Optics 2648 | . . . . 243 2083 101 57 . . 164 Sensors 1 | . . . . 1 . . . . . . Traps 3890 | . . . . . . . . . 935 2955 Seismic 449 | 26 313 8 102 . . . . . . . Robot Analysis Total . | . . . . . . . . . . . Derelict Logs Recovered . | . . . . . . . . . . . Drone Launches . | . . . . . . . . . . . Drone Recoveries . | . . . . . . . . . . . Exploration | -11 -10 -10 -10 -9 -8 -7 -7 -7 -6 -5 ------------- Run | Yrd Mat Min Exi Min Mat Fac Was Fac Fac Fac Turns Passed 9359 | 81 332 8 152 280 2083 101 126 491 1332 4373 Spaces Moved 5957 | 43 277 15 289 199 968 62 168 381 952 2603 Core 1232 | 4 152 15 289 45 . . 146 161 . 420 Treads 1925 | 39 125 . . 154 656 62 22 . . 867 Legs . | . . . . . . . . . . . Wheels 2135 | . . . . . . . . 220 952 963 Hover 312 | . . . . . 312 . . . . . Flight 353 | . . . . . . . . . . 353 Fastest Speed 40 | 50 50 50 50 50 136 155 50 95 96 40 Average Speed 120 | 149 110 50 50 135 159 155 69 112 112 120 Slowest Speed 500 | 160 160 50 50 160 240 155 155 150 115 500 Overloaded Moves . | . . . . . . . . . . . Propulsion Burnouts . | . . . . . . . . . . . Robots Hopped . | . . . . . . . . . . . Potential Cave-ins 1 | . . . . . . . 1 . . . Cave-ins Triggered 1 | . . . . . . . . . 1 . Exploration Rate (%) 38 | 5 41 5 69 43 79 3 88 12 23 58 Regions Visited 10 Branch Regions 3 Pre-discovered Areas 2 | . . . 1 1 . . . . . . Known Exits Taken . | . . . . . . . . . . . Unknown Exits Taken 8 | 1 1 1 1 1 1 . . 1 1 . Scrap Searched 1 | . . . . 1 . . . . . . Spaces Dug 49 | . . . . . 1 . . 6 12 30 Terrain Destroyed 260 | . 25 . . . 9 . 10 6 12 198 Melee 47 | . . . . . 1 . . 6 12 28 Projectile 33 | . . . . . . . . . . 33 AOE 177 | . 25 . . . 8 . 10 . . 134 Terrain Rammed . | . . . . . . . . . . . Walls Destroyed . | . . . . . . . . . . . Machines Disabled . | . . . . . . . . . . . Actions | -11 -10 -10 -10 -9 -8 -7 -7 -7 -6 -5 --------- Run | Yrd Mat Min Exi Min Mat Fac Was Fac Fac Fac Total 7570 | 52 294 14 297 207 1418 67 174 414 1172 3461 Wait 1104 | . . . . 2 355 . . 2 164 581 Move 5948 | 42 276 14 288 198 967 62 167 380 951 2603 Hop . | . . . . . . . . . . . Pick Up 49 | 1 1 . 5 . 12 1 . 3 10 16 Fast Attach 74 | 7 5 . . 5 12 . 2 12 1 30 Attach 22 | . 1 . 1 . . 2 1 1 1 15 Detach 3 | . . . 1 . 1 . . . . 1 Swap 58 | . 1 . . 2 11 2 1 2 11 28 Drop 32 | . 1 . 2 . 11 . . . 10 8 Fire 149 | 2 2 . . . 48 . 2 2 . 93 Melee 125 | . 5 . . . 1 . . 12 24 83 Ram 4 | . 2 . . . . . . . . 2 Kick . | . . . . . . . . . . . Crush 2 | . . . . . . . 1 . . 1 Escape Stasis . | . . . . . . . . . . . Rewire . | . . . . . . . . . . . Trap . | . . . . . . . . . . . Miscellaneous . | . . . . . . . . . . . Route ------- -11/Scrapyard -10/Materials -10/Mines -10/Exiles -9/Mines -8/Materials (discovered 3 exits: *Fac x3) -7/Factory -7/Waste -7/Factory -6/Factory (discovered 3 exits: *Fac / [*Low] / [*Ext]) -5/Factory (discovered 4 exits: Fac x4) History --------- Turn | Location | Event 2 | -11/Scrapyard | Met Revision 17 7 | -11/Scrapyard | Discovered new exit (range 14) 82 | -11/Scrapyard | Entered Materials 299 | -10/Materials | Released all parts (7) 315 | -10/Materials | Build established: Mutant 372 | -10/Materials | Core integrity fell below 50% 409 | -10/Materials | Discovered new exit (range 11) 414 | -10/Materials | Entered Mines 420 | -10/Mines | Lost 3 parts (1p1u1w) 420 | -10/Mines | Deemed a non-threat by the Exiles lab entrance 420 | -10/Mines | Discovered new exit (range 5) 422 | -10/Mines | Entered Exiles 439 | -10/Exiles | Met 8R-AWN 447 | -10/Exiles | Met EX-HEX 485 | -10/Exiles | Met EX-DEC 494 | -10/Exiles | Learned location of Zion (-6) 502 | -10/Exiles | Met EX-BIN 509 | -10/Exiles | Aligned with FarCom system 510 | -10/Exiles | Given EX-Vault access code 521 | -10/Exiles | Opened EX-Vault 527 | -10/Exiles | Found Trap Reconfigurator 537 | -10/Exiles | Warned to stay clear of 0b10 Research branches 569 | -10/Exiles | Discovered new exit (range 10) 574 | -10/Exiles | Left Exiles lab with Trap Reconfigurator 574 | -10/Exiles | Entered Mines 575 | -9/Mines | Learned location of Storage (-9) 604 | -9/Mines | Met a Derelict bent on vengeance 705 | -9/Mines | Found a damaged Exp. Sensor Array with a note attached 712 | -9/Mines | Found Prototype Device 712 | -9/Mines | Identified Exp. Sensor Array 848 | -9/Mines | Discovered new exit (range 4) 854 | -9/Mines | Entered Materials 854 | -8/Materials | Evolved 4 slots: Propulsion x2, Utility x1, Weapon x1 1317 | -8/Materials | Build established: Skirmisher 1954 | -8/Materials | Discovered new exit (range 18) 2106 | -8/Materials | Discovered new exit (range 5) 2500 | -8/Materials | Build established: Scavenger-Skirmisher 2909 | -8/Materials | Discovered new exit (range 17) 2937 | -8/Materials | Entered Factory 2937 | -7/Factory | Evolved 2 slots: Utility x2 3038 | -7/Factory | Sucked down chute 3038 | -7/Factory | Entered Waste 3039 | -7/Waste | Met a frightened Derelict 3053 | -7/Waste | EMP discharged 3056 | -7/Waste | Spotted C-40 Crusher 3062 | -7/Waste | Spotted C-40 Crusher 3068 | -7/Waste | Spotted C-40 Crusher 3069 | -7/Waste | Spotted C-40 Crusher 3070 | -7/Waste | Spotted C-40 Crusher 3072 | -7/Waste | Crushed by Compactor (1 part destroyed, 1 dropped) 3075 | -7/Waste | Crushed by Compactor (1 part destroyed, 1 dropped) 3075 | -7/Waste | Crushed by Compactor (1 part destroyed, 1 dropped) 3078 | -7/Waste | Crushed by Compactor (1 part destroyed, 2 dropped) 3078 | -7/Waste | Crushed by Compactor (1 part destroyed, 2 dropped) 3095 | -7/Waste | Crushed by Compactor (1 part destroyed) 3126 | -7/Waste | Lost 7 parts (2n3u2w) 3126 | -7/Waste | Spotted C-40 Crusher 3153 | -7/Waste | EMP discharged 3153 | -7/Waste | System corruption reached 10% 3154 | -7/Waste | Discovered new exit (range 10) 3164 | -7/Waste | Entered Factory 3372 | -7/Factory | Build established: Mutant 3648 | -7/Factory | Discovered new exit (range 5) 3655 | -7/Factory | Entered another Factory area 3655 | -6/Factory | Evolved 2 slots: Utility x1, Weapon x1 3934 | -6/Factory | Build established: Gunner 3967 | -6/Factory | Discovered new exit (range 16) 4252 | -6/Factory | Crushed by falling debris 4655 | -6/Factory | Discovered new exit (range 5) 4876 | -6/Factory | Discovered new exit (range 14) 4987 | -6/Factory | Entered another Factory area 4987 | -5/Factory | Evolved 2 slots: Power x1, Utility x1 5601 | -5/Factory | Cargo convoy interrupted 5701 | -5/Factory | Garrison activated, responded to threat 6956 | -5/Factory | System corruption reached 10% 7156 | -5/Factory | Lost 3 parts (1p1u1w) 7987 | -5/Factory | First assault squad dispatched 8088 | -5/Factory | Lost 5 parts (2n2u1w) 8476 | -5/Factory | Lost 4 parts (2n1u1w) 8854 | -5/Factory | Lost 4 parts (1p3w) 8959 | -5/Factory | Lost 12 parts (2p4n2u4w) 8976 | -5/Factory | Released all parts (5) 8984 | -5/Factory | Core integrity fell below 50% 9157 | -5/Factory | Core integrity fell below 20% 9217 | -5/Factory | Build established: Mutant 9289 | -5/Factory | Identified exit to Factory 9360 | -5/Factory | Destroyed by Y-64 Sentinel with Wave Gun Last Messages --------------- Map updated. 09292_ Penetrated by Slug. 09298_ System corrupted: Imp. Propulsion Shielding rejected. 09299_ Acquired Imp. Propulsion Shielding. 09319_ System corrupted: Energy discharge (-30). 09334_ System corrupted: IFF burst signal emitted. 09346_ Y-64 Sentinel Imp. Treads severed. 09346_ Slug penetrates Repair Station. 09350_ System corrupted: Imp. Propulsion Shielding rejected. 09352_ Adv. Hacking Suite destroyed. 09352_ Slug penetrates Wall. 09355_ R-10 Processor collects Imp. Treads. 09355_ Acquired Imp. Propulsion Shielding. 09357_ Slug penetrates R-10 Processor. 09357_ R-10 Processor suffers critical hit (Destroy). 09357_ R-10 Processor destroyed. Map ----- +----------------------------------------------------+ | ???????#^ #????????????? | | ???????# # #????????????? | | ???????# ######????????????? | | ???????# "" #?????????????????? | | ???????# "" ############# #???? | | ???????# "T #???? | | ???????# "" #???? | | ???????# "" #???? | | ?????#+# +?? | | ?????# ############?? | | ?????# ##### # #??? | | ?????# #???# + !#??? | | ?????# #???# # #??? | | ?????# #???# # #??? | | ?????#+#######+##### #?#########??? | | ?????# ##+###########??? | | ?????# """"""""" # #??? | | ?????# # #??? | | ?????# """Y""" ! # #??? | | ?????# """"""" # #??? | | ?????##########;### #### | | ???????# ## + | | ???????## """" ## #### | | ????????# ""R"" ## #??? | | ????????# "" "" ## #??? | | ????????#*@= ## s #??? | | ????????#=%Y !! ## ss #??? | | ????????#==! =! ## #??? | | ????????# ! ###+####+######??? | | ????????# #?????? ???????? | | ????????###+######????? ???????? | | ??????????? ????????? ???????? | | ??????????? ???????? ???????? | | ???????????" ?????? ???????? | | ???????????? ?????######+#???????? | | ???????????? #???????????????????? | | ????????????###???????????????????? | | ??????????????????????????????????? | | ??????????????????????????????????? | | ??????????????????????????????????? | | ??????????????????????????????????? | | ??????????????????????????????????? | | ??????????????????????????????????? | | ??????????????????????????????????? | | ??????????????????????????????????? | | ??????????????????????????????????? | | ??????????????????????????????????? | | ??????????????????????????????????? | | ??????????????????????????????????? | | ??????????